[Event "2026 European Womens Championship"]
[Site "Batumi, GE"]
[Date "2026.06.02"]
[Round "8"]
[White "Safarli, Josefine"]
[Black "Poliakova, Varvara"]
[Result "1-0"]
[Board "35"]
[TimeControl "5400+30"]
[WhiteFideId "12900460"]
[BlackFideId "13518313"]
[WhiteElo "2253"]
[BlackElo "2108"]
[WhiteTitle "WGM"]
[BlackTitle "WFM"]
[WhiteClock "0:39:01"]
[BlackClock "0:29:39"]
[Variant "Standard"]

1. e4 {[%clk 1:30:56]}  c5 {[%clk 1:30:13]} 2. Nf3 {[%clk 1:31:10]}  d6 {[%clk 1:30:36]} 3. d4 {[%clk 1:31:31]}  cxd4 {[%clk 1:31:00]}
4. Nxd4 {[%clk 1:31:58]}  Nf6 {[%clk 1:31:25]} 5. Nc3 {[%clk 1:32:24]}  a6 {[%clk 1:31:49]} 6. f3 {[%clk 1:31:44]}  e5 {[%clk 1:31:10]}
7. Nb3 {[%clk 1:32:09]}  Be6 {[%clk 1:29:54]} 8. Be3 {[%clk 1:32:12]}  Be7 {[%clk 1:27:56]} 9. Qd2 {[%clk 1:31:55]}  h5 {[%clk 1:26:46]}
10. Be2 {[%clk 1:31:26]}  Nbd7 {[%clk 1:24:55]} 11. Nd5 {[%clk 1:31:25]}  Bxd5 {[%clk 1:23:08]} 12. exd5 {[%clk 1:31:50]}  Qc7 {[%clk 1:20:58]}
13. Rc1 {[%clk 1:30:53]}  O-O {[%clk 1:19:21]} 14. c4 {[%clk 1:29:17]}  a5 {[%clk 1:15:37]} 15. Na1 {[%clk 1:26:33]}  Nc5 {[%clk 1:05:23]}
16. Nc2 {[%clk 1:24:03]}  Bd8 {[%clk 1:01:55]} 17. Na3 {[%clk 1:18:57]}  Qd7 {[%clk 0:59:10]} 18. O-O {[%clk 1:14:07]}  Bb6 {[%clk 0:57:25]}
19. b3 {[%clk 1:10:56]}  Rfe8 {[%clk 0:48:24]} 20. Nb5 {[%clk 1:06:03]}  Nh7 {[%clk 0:39:59]} 21. Kh1 {[%clk 1:00:15]}  f5 {[%clk 0:37:05]}
22. Bd1 {[%clk 0:56:01]}  f4 {[%clk 0:30:40]} 23. Bg1 {[%clk 0:55:45]}  e4 {[%clk 0:22:43]} 24. fxe4 {[%clk 0:55:12]}  Nxe4 {[%clk 0:22:57]}
25. Qd3 {[%clk 0:52:28]}  Bxg1 {[%clk 0:16:55]} 26. Kxg1 {[%clk 0:52:02]}  Nc5 {[%clk 0:15:54]} 27. Qg6 {[%clk 0:46:24]}  Nf6 {[%clk 0:14:39]}
28. Bxh5 {[%clk 0:40:57]}  Qe7 {[%clk 0:13:36]} 29. Rc3 {[%clk 0:33:02]}  Nce4 {[%clk 0:09:47]} 30. Rd3 {[%clk 0:29:38]}  a4 {[%clk 0:06:32]}
31. Bg4 {[%clk 0:24:51]}  Nc5 {[%clk 0:05:17]} 32. Be6+ {[%clk 0:23:23]}  Nxe6 {[%clk 0:05:42]} 33. dxe6 {[%clk 0:23:50]}  Qxe6 {[%clk 0:04:29]}
34. Nc7 {[%clk 0:22:47]}  Qe5 {[%clk 0:04:55]} 35. Nxe8 {[%clk 0:22:11]}  Rxe8 {[%clk 0:05:20]} 36. h3 {[%clk 0:16:54]}  axb3 {[%clk 0:05:10]}
37. axb3 {[%clk 0:17:20]}  b5 {[%clk 0:04:01]} 38. cxb5 {[%clk 0:16:06]}  Qxb5 {[%clk 0:04:06]} 39. Rdf3 {[%clk 0:15:56]}  Nh5 {[%clk 0:03:25]}
40. Qxd6 {[%clk 0:14:14]}  Ng3 {[%clk 0:01:46]} 41. Rxg3 {[%clk 0:11:17]}  fxg3 {[%clk 0:02:09]} 42. Qxg3 {[%clk 0:11:42]}  Rb8 {[%clk 0:00:47]}
43. Rf3 {[%clk 0:10:41]}  Rc8 {[%clk 0:30:17]} 44. Kh2 {[%clk 0:40:27]}  Qb6 {[%clk 0:29:50]} 45. Re3 {[%clk 0:39:32]}  Qd4 {[%clk 0:29:39]}
46. Qe5 {[%clk 0:39:01]} 1-0

[Event "2026 European Womens Championship"]
[Site "Batumi, GE"]
[Date "2026.06.02"]
[Round "8"]
[White "Olde, Margareth"]
[Black "Purtseladze, Maka"]
[Result "1-0"]
[Board "36"]
[TimeControl "5400+30"]
[WhiteFideId "4503082"]
[BlackFideId "13602659"]
[WhiteElo "2194"]
[BlackElo "2237"]
[WhiteTitle "WIM"]
[BlackTitle "IM"]
[WhiteClock "0:06:23"]
[BlackClock "0:31:20"]
[Variant "Standard"]

1. Nf3 {[%clk 1:30:57]}  d5 {[%clk 1:30:43]} 2. g3 {[%clk 1:31:12]}  Nd7 {[%clk 1:29:27]} 3. c4 {[%clk 1:27:55]}  dxc4 {[%clk 1:29:16]}
4. Qa4 {[%clk 1:27:43]}  c6 {[%clk 1:25:26]} 5. Qxc4 {[%clk 1:27:49]}  e5 {[%clk 1:25:44]} 6. Bg2 {[%clk 1:22:20]}  Ngf6 {[%clk 1:26:07]}
7. O-O {[%clk 1:18:37]}  Bd6 {[%clk 1:25:44]} 8. b3 {[%clk 1:15:37]}  Qe7 {[%clk 1:25:35]} 9. Bb2 {[%clk 1:13:48]}  O-O {[%clk 1:25:11]}
10. Qc2 {[%clk 1:10:50]}  Nb6 {[%clk 1:24:55]} 11. Nc3 {[%clk 1:07:28]}  Bg4 {[%clk 1:20:23]} 12. h3 {[%clk 1:02:43]}  Bh5 {[%clk 1:16:52]}
13. Nh4 {[%clk 0:58:58]}  Bg6 {[%clk 1:17:08]} 14. Qc1 {[%clk 0:51:00]}  e4 {[%clk 1:15:20]} 15. Nxg6 {[%clk 0:43:23]}  hxg6 {[%clk 1:15:31]}
16. Qc2 {[%clk 0:41:06]}  Rfe8 {[%clk 1:15:45]} 17. d3 {[%clk 0:37:41]}  exd3 {[%clk 0:45:38]} 18. Qxd3 {[%clk 0:37:58]}  Rad8 {[%clk 0:46:06]}
19. Qc2 {[%clk 0:36:33]}  Be5 {[%clk 0:36:21]} 20. e3 {[%clk 0:34:12]}  Qc5 {[%clk 0:35:58]} 21. Rac1 {[%clk 0:32:22]}  Rd7 {[%clk 0:34:37]}
22. Qe2 {[%clk 0:25:27]}  Red8 {[%clk 0:33:29]} 23. Nd5 {[%clk 0:17:21]}  Qd6 {[%clk 0:33:41]} 24. Bxe5 {[%clk 0:16:03]}  Qxe5 {[%clk 0:34:07]}
25. Nxb6 {[%clk 0:15:52]}  axb6 {[%clk 0:34:20]} 26. Rfd1 {[%clk 0:15:30]}  b5 {[%clk 0:31:15]} 27. Rxd7 {[%clk 0:13:11]}  Rxd7 {[%clk 0:31:42]}
28. Rd1 {[%clk 0:13:10]}  Kf8 {[%clk 0:19:36]} 29. Rxd7 {[%clk 0:10:46]}  Nxd7 {[%clk 0:20:02]} 30. Qd2 {[%clk 0:10:55]}  Ke7 {[%clk 0:20:29]}
31. f4 {[%clk 0:08:21]}  Qd6 {[%clk 0:18:04]} 32. Qc3 {[%clk 0:07:33]}  Qa3 {[%clk 0:11:06]} 33. Qc2 {[%clk 0:06:02]}  Qc5 {[%clk 0:09:37]}
34. Qe4+ {[%clk 0:06:04]}  Kd6 {[%clk 0:09:27]} 35. Qe8 {[%clk 0:05:08]}  Qf5 {[%clk 0:09:04]} 36. e4 {[%clk 0:04:25]}  Qe6 {[%clk 0:07:49]}
37. Qc8 {[%clk 0:01:27]}  Kc5 {[%clk 0:04:53]} 38. Qxb7 {[%clk 0:01:11]}  Nf6 {[%clk 0:04:46]} 39. Qa7+ {[%clk 0:00:52]}  Kb4 {[%clk 0:05:13]}
40. Qd4+ {[%clk 0:00:42]}  Ka3 {[%clk 0:05:20]} 41. Qa7+ {[%clk 0:22:50]}  Kb2 {[%clk 0:34:51]} 42. Qf2+ {[%clk 0:23:05]}  Ka3 {[%clk 0:35:18]}
43. Qc2 {[%clk 0:21:57]}  Nd7 {[%clk 0:33:19]} 44. e5 {[%clk 0:20:25]}  c5 {[%clk 0:33:46]} 45. Qd3 {[%clk 0:19:44]}  b4 {[%clk 0:32:22]}
46. Qc2 {[%clk 0:10:23]}  Qb6 {[%clk 0:32:30]} 47. Kh2 {[%clk 0:06:42]}  Nf8 {[%clk 0:32:49]} 48. Be4 {[%clk 0:06:21]}  Qd8 {[%clk 0:30:54]}
49. Qc1+ {[%clk 0:06:12]}  Kxa2 {[%clk 0:31:20]} 50. Bb1+ {[%clk 0:06:23]} 1-0

[Event "2026 European Womens Championship"]
[Site "Batumi, GE"]
[Date "2026.06.02"]
[Round "8"]
[White "Deak-Sala, Emilia"]
[Black "Skarbarchuk, Tetyana"]
[Result "1/2-1/2"]
[Board "37"]
[TimeControl "5400+30"]
[WhiteFideId "795615"]
[BlackFideId "14184494"]
[WhiteElo "2086"]
[BlackElo "2236"]
[WhiteTitle "WFM"]
[WhiteClock "0:07:42"]
[BlackClock "0:20:20"]
[Variant "Standard"]

1. d4 {[%clk 1:27:27]}  d5 {[%clk 1:29:54]} 2. Nc3 {[%clk 1:27:47]}  Nf6 {[%clk 1:29:39]} 3. Bf4 {[%clk 1:28:11]}  e6 {[%clk 1:29:36]}
4. Nb5 {[%clk 1:28:18]}  Na6 {[%clk 1:28:47]} 5. e3 {[%clk 1:28:39]}  c6 {[%clk 1:25:53]} 6. Nc3 {[%clk 1:29:00]}  Qb6 {[%clk 1:26:09]}
7. a3 {[%clk 1:21:18]}  Bd7 {[%clk 1:19:22]} 8. Na4 {[%clk 1:07:17]}  Qa5+ {[%clk 1:19:04]} 9. c3 {[%clk 1:07:28]}  b5 {[%clk 1:17:06]}
10. Nc5 {[%clk 1:07:44]}  Nxc5 {[%clk 1:15:21]} 11. b4 {[%clk 1:03:11]}  Qa4 {[%clk 0:59:42]} 12. bxc5 {[%clk 0:55:03]}  Qxd1+ {[%clk 0:58:58]}
13. Rxd1 {[%clk 0:55:25]}  Ne4 {[%clk 0:52:35]} 14. Ne2 {[%clk 0:52:03]}  g5 {[%clk 0:48:02]} 15. Bc7 {[%clk 0:52:01]}  Rc8 {[%clk 0:47:07]}
16. Ba5 {[%clk 0:44:18]}  g4 {[%clk 0:40:45]} 17. Ng3 {[%clk 0:36:36]}  Nf6 {[%clk 0:34:00]} 18. Bd3 {[%clk 0:31:16]}  h5 {[%clk 0:32:54]}
19. Kd2 {[%clk 0:26:12]}  h4 {[%clk 0:28:51]} 20. Ne2 {[%clk 0:26:25]}  e5 {[%clk 0:28:52]} 21. a4 {[%clk 0:22:37]}  e4 {[%clk 0:24:29]}
22. Bc2 {[%clk 0:23:00]}  a6 {[%clk 0:21:28]} 23. axb5 {[%clk 0:23:13]}  axb5 {[%clk 0:21:50]} 24. Ra1 {[%clk 0:23:36]}  Be7 {[%clk 0:21:39]}
25. Bb6 {[%clk 0:22:00]}  Bd8 {[%clk 0:21:15]} 26. Bxd8 {[%clk 0:22:03]}  Kxd8 {[%clk 0:21:02]} 27. Ra7 {[%clk 0:21:31]}  Rc7 {[%clk 0:17:38]}
28. Ra8+ {[%clk 0:21:45]}  Rc8 {[%clk 0:18:04]} 29. Ra7 {[%clk 0:18:30]}  Rc7 {[%clk 0:17:40]} 30. Ra6 {[%clk 0:18:55]}  Ke7 {[%clk 0:17:19]}
31. Nf4 {[%clk 0:18:49]}  Nh5 {[%clk 0:16:29]} 32. Bd1 {[%clk 0:17:20]}  Nxf4 {[%clk 0:14:43]} 33. exf4 {[%clk 0:17:47]}  Rcc8 {[%clk 0:15:07]}
34. Be2 {[%clk 0:18:11]}  Ra8 {[%clk 0:10:21]} 35. Raa1 {[%clk 0:05:37]}  Kf6 {[%clk 0:03:20]} 36. Ke3 {[%clk 0:05:34]}  Bf5 {[%clk 0:03:02]}
37. g3 {[%clk 0:05:20]}  h3 {[%clk 0:02:21]} 38. Rhb1 {[%clk 0:03:52]}  Ke6 {[%clk 0:01:58]} 39. Bd1 {[%clk 0:04:02]}  Kd7 {[%clk 0:01:41]}
40. Be2 {[%clk 0:04:21]}  Kc7 {[%clk 0:01:35]} 41. Bd1 {[%clk 0:04:27]}  Rhb8 {[%clk 0:22:19]} 42. Be2 {[%clk 0:31:07]}  Kd7 {[%clk 0:18:28]}
43. Bd1 {[%clk 0:31:15]}  Kc8 {[%clk 0:13:39]} 44. Be2 {[%clk 0:20:15]}  Kc7 {[%clk 0:11:51]} 45. Bd1 {[%clk 0:20:20]}  Kc8 {[%clk 0:07:42]} 1/2-1/2

[Event "2026 European Womens Championship"]
[Site "Batumi, GE"]
[Date "2026.06.02"]
[Round "8"]
[White "Abdinova, Narmin"]
[Black "Tsolakidou, Stavroula"]
[Result "0-1"]
[Board "38"]
[TimeControl "5400+30"]
[WhiteFideId "13425340"]
[BlackFideId "4264312"]
[WhiteElo "2165"]
[BlackElo "2455"]
[WhiteTitle "WIM"]
[BlackTitle "IM"]
[WhiteClock "0:00:33"]
[BlackClock "0:04:59"]
[Variant "Standard"]

1. e4 {[%clk 1:25:45]}  c5 {[%clk 1:30:44]} 2. Nf3 {[%clk 1:26:11]}  d6 {[%clk 1:31:03]} 3. d4 {[%clk 1:26:31]}  cxd4 {[%clk 1:31:25]}
4. Nxd4 {[%clk 1:26:43]}  Nf6 {[%clk 1:31:47]} 5. Nc3 {[%clk 1:27:08]}  a6 {[%clk 1:32:12]} 6. Bd3 {[%clk 1:27:25]}  g6 {[%clk 1:30:09]}
7. O-O {[%clk 1:27:16]}  Bg7 {[%clk 1:25:30]} 8. Kh1 {[%clk 1:27:37]}  O-O {[%clk 1:07:46]} 9. f4 {[%clk 1:28:04]}  e5 {[%clk 1:06:07]}
10. fxe5 {[%clk 1:05:38]}  dxe5 {[%clk 0:58:21]} 11. Nf3 {[%clk 1:03:54]}  Nc6 {[%clk 0:52:24]} 12. a3 {[%clk 0:58:17]}  Be6 {[%clk 0:51:20]}
13. Qe1 {[%clk 0:53:14]}  h6 {[%clk 0:49:49]} 14. Be3 {[%clk 0:50:07]}  Qe7 {[%clk 0:43:07]} 15. b4 {[%clk 0:41:16]}  Rfd8 {[%clk 0:40:29]}
16. Na4 {[%clk 0:27:15]}  Nd7 {[%clk 0:32:23]} 17. Nb6 {[%clk 0:25:24]}  Nxb6 {[%clk 0:32:14]} 18. Bxb6 {[%clk 0:25:48]}  Rd7 {[%clk 0:31:58]}
19. Bc5 {[%clk 0:22:03]}  Qd8 {[%clk 0:31:48]} 20. b5 {[%clk 0:21:34]}  Na5 {[%clk 0:25:51]} 21. Qf2 {[%clk 0:08:25]}  Nc4 {[%clk 0:18:11]}
22. bxa6 {[%clk 0:08:50]}  bxa6 {[%clk 0:18:11]} 23. Qe2 {[%clk 0:08:00]}  Nd6 {[%clk 0:11:16]} 24. Bxa6 {[%clk 0:03:59]}  Nxe4 {[%clk 0:10:43]}
25. Bb4 {[%clk 0:04:25]}  f5 {[%clk 0:10:04]} 26. Bc4 {[%clk 0:00:33]}  Qb6 {[%clk 0:08:51]} 27. Bb5 {[%clk 0:00:32]}  Rc7 {[%clk 0:07:13]}
28. Bd3 {[%clk 0:00:51]}  Bd5 {[%clk 0:04:41]} 29. c4 {[%clk 0:01:17]}  Bb7 {[%clk 0:04:32]} 30. Bxe4 {[%clk 0:01:07]}  Bxe4 {[%clk 0:04:29]}
31. Nd2 {[%clk 0:01:08]}  Bb7 {[%clk 0:04:17]} 32. c5 {[%clk 0:00:37]}  Qe6 {[%clk 0:04:34]} 33. Rfe1 {[%clk 0:00:32]}  e4 {[%clk 0:03:40]}
34. Rac1 {[%clk 0:00:43]}  Ba6 {[%clk 0:03:27]} 35. Qe3 {[%clk 0:01:06]}  Qd5 {[%clk 0:03:10]} 36. Qb3 {[%clk 0:00:33]}  Qxb3 {[%clk 0:02:42]}
37. Nxb3 {[%clk 0:00:59]}  Bb5 {[%clk 0:02:04]} 38. Na5 {[%clk 0:00:32]}  Bd4 {[%clk 0:01:47]} 39. c6 {[%clk 0:00:39]}  Bb6 {[%clk 0:01:43]}
40. Nc4 {[%clk 0:01:03]}  Bf2 {[%clk 0:01:15]} 41. Re2 {[%clk 0:12:51]}  Ba7 {[%clk 0:29:12]} 42. a4 {[%clk 0:10:10]}  Ba6 {[%clk 0:28:48]}
43. Rec2 {[%clk 0:10:23]}  Rxc6 {[%clk 0:28:30]} 44. Ne5 {[%clk 0:10:31]}  Rxc2 {[%clk 0:27:47]} 45. Rxc2 {[%clk 0:10:58]}  Rd8 {[%clk 0:26:30]}
46. Rd2 {[%clk 0:08:56]}  Rxd2 {[%clk 0:14:45]} 47. Bxd2 {[%clk 0:09:23]}  Kh7 {[%clk 0:12:50]} 48. Bc3 {[%clk 0:05:04]}  Bb7 {[%clk 0:09:57]}
49. a5 {[%clk 0:01:18]}  Bf2 {[%clk 0:08:30]} 50. Nd7 {[%clk 0:01:20]}  g5 {[%clk 0:07:55]} 51. Nb8 {[%clk 0:01:25]}  f4 {[%clk 0:04:42]}
52. a6 {[%clk 0:00:32]}  Ba8 {[%clk 0:05:06]} 53. Nd7 {[%clk 0:00:38]}  Ba7 {[%clk 0:04:52]} 54. Bb4 {[%clk 0:00:31]}  f3 {[%clk 0:04:52]}
55. Nf6+ {[%clk 0:00:33]}  Kg6 {[%clk 0:04:59]} 0-1

[Event "2026 European Womens Championship"]
[Site "Batumi, GE"]
[Date "2026.06.02"]
[Round "8"]
[White "Gaponenko, Inna"]
[Black "Zeliantsova, Kseniya"]
[Result "1-0"]
[Board "39"]
[TimeControl "5400+30"]
[WhiteFideId "14101181"]
[BlackFideId "13512617"]
[WhiteElo "2331"]
[BlackElo "2176"]
[WhiteTitle "IM"]
[BlackTitle "WFM"]
[WhiteClock "0:01:18"]
[BlackClock "0:02:06"]
[Variant "Standard"]
[Termination "forfeit"]

1. e4 {[%clk 1:30:57]}  c5 {[%clk 1:30:51]} 2. Nf3 {[%clk 1:31:19]}  Nc6 {[%clk 1:31:11]} 3. c3 {[%clk 1:31:43]}  d5 {[%clk 1:30:56]}
4. exd5 {[%clk 1:32:06]}  Qxd5 {[%clk 1:31:21]} 5. d4 {[%clk 1:32:30]}  Bf5 {[%clk 1:31:01]} 6. Be3 {[%clk 1:30:55]}  cxd4 {[%clk 1:30:28]}
7. Nxd4 {[%clk 1:30:48]}  Nf6 {[%clk 1:30:11]} 8. Na3 {[%clk 1:13:04]}  Nxd4 {[%clk 1:05:49]} 9. Qxd4 {[%clk 0:52:38]}  Qxd4 {[%clk 0:57:36]}
10. Bxd4 {[%clk 0:53:03]}  a6 {[%clk 0:55:47]} 11. O-O-O {[%clk 0:44:34]}  g6 {[%clk 0:47:58]} 12. Bd3 {[%clk 0:44:39]}  Bh6+ {[%clk 0:46:52]}
13. Kc2 {[%clk 0:44:59]}  Bxd3+ {[%clk 0:45:14]} 14. Rxd3 {[%clk 0:45:18]}  O-O {[%clk 0:45:08]} 15. Re1 {[%clk 0:40:38]}  Rfe8 {[%clk 0:41:05]}
16. Bxf6 {[%clk 0:34:55]}  exf6 {[%clk 0:41:24]} 17. Rxe8+ {[%clk 0:35:22]}  Rxe8 {[%clk 0:41:49]} 18. Kd1 {[%clk 0:35:50]}  Bf8 {[%clk 0:26:54]}
19. Nc2 {[%clk 0:32:31]}  Bc5 {[%clk 0:25:46]} 20. f3 {[%clk 0:32:39]}  Re6 {[%clk 0:22:28]} 21. a4 {[%clk 0:31:39]}  Rd6 {[%clk 0:18:50]}
22. Kd2 {[%clk 0:27:29]}  Kf8 {[%clk 0:14:16]} 23. b4 {[%clk 0:27:21]}  Rxd3+ {[%clk 0:14:42]} 24. Kxd3 {[%clk 0:27:47]}  Bg1 {[%clk 0:13:51]}
25. h3 {[%clk 0:27:52]}  Ke7 {[%clk 0:14:09]} 26. Ke4 {[%clk 0:20:07]}  Kd6 {[%clk 0:12:52]} 27. g4 {[%clk 0:20:26]}  Bh2 {[%clk 0:07:30]}
28. c4 {[%clk 0:03:08]}  b6 {[%clk 0:03:40]} 29. Nd4 {[%clk 0:03:35]}  Bg3 {[%clk 0:02:32]} 30. Nb3 {[%clk 0:03:36]}  Be1 {[%clk 0:02:04]}
31. c5+ {[%clk 0:03:26]}  Kc7 {[%clk 0:01:30]} 32. b5 {[%clk 0:02:50]}  axb5 {[%clk 0:01:19]} 33. axb5 {[%clk 0:03:17]}  bxc5 {[%clk 0:01:24]}
34. Nxc5 {[%clk 0:03:43]}  Kb6 {[%clk 0:01:05]} 35. Nd7+ {[%clk 0:04:07]}  Kxb5 {[%clk 0:01:32]} 36. Nxf6 {[%clk 0:04:32]}  Kc6 {[%clk 0:01:07]}
37. Nxh7 {[%clk 0:04:00]}  Kd6 {[%clk 0:01:02]} 38. f4 {[%clk 0:03:36]}  Ke6 {[%clk 0:00:36]} 39. Ng5+ {[%clk 0:02:32]}  Kf6 {[%clk 0:00:58]}
40. Nf3 {[%clk 0:02:58]}  Bb4 {[%clk 0:00:40]} 41. Nd4 {[%clk 0:00:48]}  Be1 {[%clk 0:26:34]} 42. Nc2 {[%clk 0:22:42]}  Bf2 {[%clk 0:23:01]}
43. Ne3 {[%clk 0:23:03]}  Kg7 {[%clk 0:21:46]} 44. Nd5 {[%clk 0:23:18]}  f6 {[%clk 0:21:12]} 45. f5 {[%clk 0:22:01]}  g5 {[%clk 0:20:56]}
46. Nb4 {[%clk 0:15:42]}  Kf7 {[%clk 0:18:23]} 47. Kd5 {[%clk 0:15:25]}  Be1 {[%clk 0:17:02]} 48. Nc2 {[%clk 0:14:11]}  Bg3 {[%clk 0:16:19]}
49. Kc6 {[%clk 0:05:25]}  Ke7 {[%clk 0:16:23]} 50. Ne3 {[%clk 0:05:53]}  Be5 {[%clk 0:16:38]} 51. Nd5+ {[%clk 0:06:19]}  Kd8 {[%clk 0:16:15]}
52. Nb6 {[%clk 0:06:06]}  Ke7 {[%clk 0:14:01]} 53. Nc8+ {[%clk 0:06:30]}  Kd8 {[%clk 0:14:18]} 54. Nd6 {[%clk 0:06:56]}  Ke7 {[%clk 0:14:41]}
55. Ne4 {[%clk 0:07:23]}  Bf4 {[%clk 0:13:48]} 56. Nc3 {[%clk 0:06:32]}  Be5 {[%clk 0:13:43]} 57. Ne2 {[%clk 0:06:58]}  Kd8 {[%clk 0:12:52]}
58. Ng1 {[%clk 0:06:28]}  Ke7 {[%clk 0:12:44]} 59. Nf3 {[%clk 0:06:54]}  Bg3 {[%clk 0:12:54]} 60. Kd5 {[%clk 0:06:59]}  Kd7 {[%clk 0:11:04]}
61. Nd4 {[%clk 0:06:58]}  Be5 {[%clk 0:09:00]} 62. Nc2 {[%clk 0:07:24]}  Bf4 {[%clk 0:08:18]} 63. Ne1 {[%clk 0:06:04]}  Bg3 {[%clk 0:06:55]}
64. Nd3 {[%clk 0:06:19]}  Bd6 {[%clk 0:06:32]} 65. Nb2 {[%clk 0:01:31]}  Bg3 {[%clk 0:04:54]} 66. Nc4 {[%clk 0:01:59]}  Bf2 {[%clk 0:04:23]}
67. Nd6 {[%clk 0:02:24]}  Be3 {[%clk 0:03:49]} 68. Ne4 {[%clk 0:01:26]}  Ke7 {[%clk 0:04:16]} 69. Kc6 {[%clk 0:01:41]}  Bf4 {[%clk 0:04:19]}
70. Nc3 {[%clk 0:02:04]}  Be5 {[%clk 0:04:31]} 71. Ne2 {[%clk 0:02:24]}  Kd8 {[%clk 0:04:38]} 72. Ng1 {[%clk 0:02:45]}  Ke7 {[%clk 0:04:57]}
73. Nf3 {[%clk 0:03:10]}  Bg3 {[%clk 0:05:14]} 74. Nd2 {[%clk 0:03:37]}  Bf4 {[%clk 0:03:54]} 75. Nc4 {[%clk 0:04:03]}  Bg3 {[%clk 0:03:53]}
76. Kd5 {[%clk 0:04:30]}  Kd7 {[%clk 0:03:37]} 77. Nb6+ {[%clk 0:04:35]}  Ke7 {[%clk 0:03:36]} 78. Ke4 {[%clk 0:04:44]}  Kd6 {[%clk 0:03:12]}
79. Nc4+ {[%clk 0:05:00]}  Ke7 {[%clk 0:02:54]} 80. Ne3 {[%clk 0:05:21]}  Kd6 {[%clk 0:02:41]} 81. Nc4+ {[%clk 0:05:43]}  Ke7 {[%clk 0:02:59]}
82. Kf3 {[%clk 0:06:02]}  Be1 {[%clk 0:02:43]} 83. Ne3 {[%clk 0:06:05]}  Kd6 {[%clk 0:02:44]} 84. Ng2 {[%clk 0:06:23]}  Bc3 {[%clk 0:02:17]}
85. Ke4 {[%clk 0:06:50]}  Ke7 {[%clk 0:01:52]} 86. Kd5 {[%clk 0:06:57]}  Bd2 {[%clk 0:02:16]} 87. h4 {[%clk 0:07:19]}  gxh4 {[%clk 0:02:40]}
88. Nxh4 {[%clk 0:07:45]}  Bg5 {[%clk 0:02:45]} 89. Ng6+ {[%clk 0:08:02]}  Kf7 {[%clk 0:03:10]} 90. Kd6 {[%clk 0:08:24]}  Bd2 {[%clk 0:02:07]}
91. Kd7 {[%clk 0:08:37]}  Bg5 {[%clk 0:01:59]} 92. Ne7 {[%clk 0:08:27]}  Bh4 {[%clk 0:01:15]} 93. Nc8 {[%clk 0:08:21]}  Kg7 {[%clk 0:00:43]}
94. Nd6 {[%clk 0:08:35]}  Be1 {[%clk 0:00:33]} 95. Ke6 {[%clk 0:08:31]}  Bc3 {[%clk 0:00:57]} 96. Ne8+ {[%clk 0:08:54]}  Kh6 {[%clk 0:01:15]}
97. Nxf6 {[%clk 0:09:19]}  Bb4 {[%clk 0:00:44]} 98. Ne4 {[%clk 0:07:38]}  Kg7 {[%clk 0:00:43]} 99. Nd6 {[%clk 0:07:59]}  Bd2 {[%clk 0:00:37]}
100. Nc4 {[%clk 0:01:51]}  Bc1 {[%clk 0:00:32]} 101. Ne5 {[%clk 0:02:17]}  Bg5 {[%clk 0:00:44]} 102. Nf3 {[%clk 0:02:42]}  Bc1 {[%clk 0:00:59]}
103. Ne5 {[%clk 0:01:15]}  Bg5 {[%clk 0:01:10]} 104. Nf7 {[%clk 0:01:34]}  Bc1 {[%clk 0:01:16]} 105. Nd6 {[%clk 0:01:57]}  Kh6 {[%clk 0:00:58]}
106. f6 {[%clk 0:00:56]}  Ba3 {[%clk 0:00:39]} 107. Nf5 {[%clk 0:01:03]}  Kg5 {[%clk 0:00:48]} 108. Ne7 {[%clk 0:01:04]}  Bb2 {[%clk 0:01:13]}
109. f7 {[%clk 0:01:24]}  Bg7 {[%clk 0:01:39]} 110. Nf5 {[%clk 0:01:46]}  Bf8 {[%clk 0:02:06]} 111. Kd7 {[%clk 0:01:18]} 1-0

[Event "2026 European Womens Championship"]
[Site "Batumi, GE"]
[Date "2026.06.02"]
[Round "8"]
[White "Peycheva, Gergana"]
[Black "Khukhashvili, Sopiko"]
[Result "1/2-1/2"]
[Board "40"]
[TimeControl "5400+30"]
[WhiteFideId "2916711"]
[BlackFideId "13602055"]
[WhiteElo "2186"]
[BlackElo "2329"]
[WhiteTitle "FM"]
[BlackTitle "IM"]
[WhiteClock "0:06:09"]
[BlackClock "0:33:31"]
[Variant "Standard"]

1. d4 {[%clk 1:30:54]}  Nf6 {[%clk 1:30:54]} 2. Nf3 {[%clk 1:31:04]}  e6 {[%clk 1:31:15]} 3. e3 {[%clk 1:31:01]}  c5 {[%clk 1:31:27]}
4. Bd3 {[%clk 1:30:12]}  b6 {[%clk 1:31:47]} 5. O-O {[%clk 1:29:32]}  Bb7 {[%clk 1:31:04]} 6. c4 {[%clk 1:28:33]}  Be7 {[%clk 1:28:13]}
7. Nc3 {[%clk 1:28:03]}  d5 {[%clk 1:25:35]} 8. cxd5 {[%clk 1:26:06]}  exd5 {[%clk 1:24:53]} 9. Bb5+ {[%clk 1:25:12]}  Bc6 {[%clk 1:19:58]}
10. Bxc6+ {[%clk 1:08:29]}  Nxc6 {[%clk 1:20:19]} 11. Ne5 {[%clk 1:08:44]}  Rc8 {[%clk 1:17:49]} 12. Qa4 {[%clk 0:56:51]}  Qc7 {[%clk 1:17:49]}
13. Rd1 {[%clk 0:48:04]}  O-O {[%clk 1:13:17]} 14. Nxc6 {[%clk 0:41:27]}  Qxc6 {[%clk 1:13:44]} 15. Qxc6 {[%clk 0:40:18]}  Rxc6 {[%clk 1:14:10]}
16. dxc5 {[%clk 0:40:43]}  Rxc5 {[%clk 1:13:53]} 17. Bd2 {[%clk 0:39:18]}  Rfc8 {[%clk 1:07:56]} 18. Be1 {[%clk 0:37:13]}  h6 {[%clk 1:00:36]}
19. f3 {[%clk 0:36:06]}  b5 {[%clk 0:59:14]} 20. a3 {[%clk 0:33:18]}  a6 {[%clk 0:52:39]} 21. Rd3 {[%clk 0:29:57]}  Rc4 {[%clk 0:47:37]}
22. Rad1 {[%clk 0:25:13]}  b4 {[%clk 0:45:52]} 23. Nxd5 {[%clk 0:18:19]}  Nxd5 {[%clk 0:46:17]} 24. Rxd5 {[%clk 0:18:43]}  bxa3 {[%clk 0:44:56]}
25. bxa3 {[%clk 0:17:30]}  Bxa3 {[%clk 0:44:26]} 26. Rd8+ {[%clk 0:12:16]}  Rxd8 {[%clk 0:44:24]} 27. Rxd8+ {[%clk 0:12:36]}  Kh7 {[%clk 0:44:52]}
28. Ra8 {[%clk 0:09:52]}  Ra4 {[%clk 0:45:19]} 29. Bc3 {[%clk 0:07:01]}  Bc1 {[%clk 0:42:17]} 30. Bd4 {[%clk 0:07:05]}  Ra2 {[%clk 0:38:22]}
31. h4 {[%clk 0:06:38]}  a5 {[%clk 0:37:02]} 32. Ra7 {[%clk 0:04:56]}  f6 {[%clk 0:36:06]} 33. Kh2 {[%clk 0:05:22]}  Kg8 {[%clk 0:36:01]}
34. Ra8+ {[%clk 0:05:48]}  Kf7 {[%clk 0:36:21]} 35. Ra7+ {[%clk 0:06:13]}  Kg8 {[%clk 0:33:31]} 36. Ra8+ {[%clk 0:06:09]} 1/2-1/2